fUSD/lending_fUSD_20240322
["ID","MTS","AMOUNT","RATE_DAILY","PERIOD"]
[320034749,1711098646138,-1560.101566,0.00024384,7]
[320034750,1711098646149,-151.0,0.00024384,7]
[320034752,1711098646158,-151.0,0.00024384,7]
[320034753,1711098646168,-151.0,0.00024384,7]
[320034754,1711098646178,-151.0,0.00024384,7]
[320034755,1711098646188,-151.0,0.00024384,7]
[320034756,1711098646197,-289.873019,0.00024384,7]
[320034757,1711098646207,-151.0,0.00024384,7]
[320034758,1711098646216,-289.873019,0.00024384,7]
[320034759,1711098646226,-289.873019,0.00024384,7]
[320034760,1711098646235,-289.873019,0.00024384,7]
[320034761,1711098646245,-289.873019,0.00024384,7]
[320034762,1711098646254,-289.873019,0.00024384,7]
[320034763,1711098646264,-1118.666728,0.00024384,7]
[320034764,1711098646273,-1118.666728,0.00024384,7]
[320034765,1711098646282,-1118.666728,0.00024384,7]
[320034766,1711098646291,-212.177248,0.00024384,7]
[320034767,1711098646300,-1118.666728,0.00024384,7]
[320034768,1711098646310,-1118.666728,0.00024384,7]
[320034769,1711098646319,-1118.666728,0.00024384,7]
[320034770,1711098646329,-151.0,0.00024384,7]
[320034771,1711098646338,-151.0,0.00024384,7]
[320034772,1711098646347,-151.0,0.00024384,7]
[320034773,1711098646358,-151.0,0.00024384,7]
[320034774,1711098646368,-431.806795,0.00024384,7]
[320034775,1711098646377,-151.0,0.00024384,7]
[320034776,1711098646387,-431.806795,0.00024384,7]
[320034777,1711098646396,-151.0,0.00024384,7]
[320034778,1711098646405,-431.806795,0.00024384,7]
[320034779,1711098646415,-151.0,0.00024384,7]
[320034780,1711098646424,-431.806795,0.00024384,7]
[320034781,1711098646433,-151.0,0.00024384,7]
[320034782,1711098646442,-431.806795,0.00024384,7]
[320034783,1711098646451,-431.806795,0.00024384,7]
[320034784,1711098646461,-151.0,0.00024384,7]
[320034785,1711098646470,-151.0,0.00024384,7]
[320034786,1711098646480,-151.0,0.00024384,7]
[320034787,1711098646489,-151.0,0.00024384,7]
[320034788,1711098646498,-151.0,0.00024384,7]
[320034789,1711098646507,-151.0,0.00024384,7]
[320034790,1711098646516,-151.0,0.00024384,7]
[320034791,1711098646526,-3606.518712,0.00024384,7]
[320034792,1711098646535,-3606.518712,0.00024384,7]
[320034793,1711098646545,-3606.518712,0.00024384,7]
[320034794,1711098646554,-3606.518712,0.00024384,7]
[320034795,1711098646563,-3606.518712,0.00024384,7]
[320034796,1711098646572,-3606.518712,0.00024384,7]
[320034797,1711098646581,-151.0,0.00024384,7]
[320034798,1711098646591,-151.0,0.00024384,3]
[320034799,1711098646600,-151.0,0.00024384,7]
[320034800,1711098646611,-395.546648,0.00024384,7]
[320034801,1711098646620,-297.102007,0.00024384,7]
[320034802,1711098646629,-297.102007,0.00024384,7]
[320034803,1711098646639,-395.546648,0.00024384,7]
[320034804,1711098646650,-561.841556,0.00024384,7]
[320034805,1711098646660,-561.841556,0.00024384,7]
[320034806,1711098646669,-3606.518712,0.00024384,7]
[320034807,1711098646679,-3606.518712,0.00024384,7]
[320034808,1711098646689,-603.0,0.00024423,2]
[320034809,1711098646698,-358.0,0.00024423,2]
[320034810,1711098646708,-150.0,0.00024444,2]
[320034811,1711098646717,-150.0,0.00024471,2]
[320034812,1711098646728,-232.83814637,0.00024472,2]
[320034813,1711098646737,-2933.0,0.00024493,2]
[320034814,1711098646746,-1460.0,0.00024493,2]
[320034815,1711098646756,-2421.0,0.00024493,2]
[320034816,1711098646765,-213.0,0.00024493,2]
[320034817,1711098646774,-1624.0,0.00024493,2]
[320034818,1711098646784,-151.0,0.00024493,7]
[320034819,1711098646794,-289.873019,0.00024493,7]
[320034820,1711098646802,-151.0,0.00024493,7]
[320034821,1711098646811,-289.873019,0.00024493,7]
[320034822,1711098646820,-1118.666728,0.00024493,7]
[320034823,1711098646829,-1118.666728,0.00024493,7]
[320034824,1711098646838,-151.0,0.00024493,7]
[320034825,1711098646846,-431.806795,0.00024493,7]
[320034826,1711098646858,-431.806795,0.00024493,7]
[320034827,1711098646867,-217.619233,0.00024493,7]
[320034828,1711098646876,-151.0,0.00024493,7]
[320034829,1711098646886,-151.0,0.00024493,7]
[320034830,1711098646895,-4766.0,0.00024499,2]
[320034831,1711098646905,-2447.0,0.00024499,2]
[320034832,1711098646914,-1030.84824436,0.00024505,2]
[320034833,1711098646923,-1117.29807171,0.00024505,2]
[320034834,1711098646934,-158.20826729,0.00024521,2]
[320034835,1711098646944,-580.36,0.00024525,2]
[320034836,1711098646953,-151.0,0.00024528,7]
[320034837,1711098646962,-10000.0,0.00024528,7]
[320034838,1711098646972,-10000.0,0.00024528,7]
[320034839,1711098646982,-781.793816,0.00024528,7]
[320034840,1711098646991,-10000.0,0.00024528,7]
[320034841,1711098647001,-781.793816,0.00024528,7]
[320034842,1711098647010,-323.318234,0.00024528,7]
[320034843,1711098647019,-323.318234,0.00024528,7]
[320034844,1711098647029,-175.172714,0.00024528,7]
[320034845,1711098647038,-151.0,0.00024528,7]
[320034846,1711098647048,-175.172714,0.00024528,7]
[320034847,1711098647057,-240.097416,0.00024528,7]
[320034848,1711098647066,-240.097416,0.00024528,7]
[320034849,1711098647076,-225.839689,0.00024528,7]
[320034850,1711098647085,-151.0,0.00024528,7]
[320034851,1711098647094,-1560.101566,0.00024528,7]
[320034852,1711098647105,-1560.101566,0.00024528,7]
[320034853,1711098647115,-1000.0,0.00024529,2]
[320034854,1711098647124,-239.2,0.000246,2]
[320034855,1711098647133,-151.0,0.00024602,2]
[320034856,1711098647143,-434.0,0.00024602,2]
[320034857,1711098647153,-152.0,0.00024602,2]
[320034858,1711098647162,-150.0,0.00024605,2]
[320034859,1711098647172,-232.83814637,0.00024632,2]
[320034860,1711098647182,-189.780814,0.00024658,2]
[320034861,1711098647191,-381.01,0.00024658,10]
[320034862,1711098647201,-150.0,0.00024691,2]
[320034863,1711098647210,-150.0,0.000247,2]
[320034864,1711098647219,-4000.0,0.00024721,2]
[320034865,1711098647228,-469.84717751,0.00024733,2]
[320034866,1711098647238,-923.19,0.00024762,2]
[320034867,1711098647247,-300.0,0.00024799,7]
[320034868,1711098647256,-300.0,0.00024799,7]
[320034869,1711098647266,-151.0,0.00024799,7]
[320034870,1711098647275,-151.0,0.00024799,7]
[320034871,1711098647284,-151.0,0.00024799,7]
[320034872,1711098647294,-1379.0,0.00024799,2]
[320034873,1711098647302,-2560.0,0.00024799,2]
[320034874,1711098647470,-252.201,0.00024799,2]
[320034875,1711098647480,-536.0,0.00024799,2]
[320034876,1711098647490,-1226.0,0.00024799,2]
[320034877,1711098647498,-470.24277,0.00024799,7]
[320034878,1711098647507,-488.880556,0.00024799,7]
[320034879,1711098647516,-488.880556,0.00024799,7]
[320034880,1711098647525,-470.24277,0.00024799,7]
[320034881,1711098647534,-170.665965,0.00024799,7]
[320034882,1711098647544,-170.665965,0.00024799,7]
[320034883,1711098647553,-151.0,0.00024799,7]
[320034884,1711098647563,-1609.014686,0.00024799,7]
[320034885,1711098647572,-1609.014686,0.00024799,7]
[320034886,1711098647582,-312.971937,0.00024799,7]
[320034887,1711098647590,-312.971937,0.00024799,7]
[320034888,1711098647604,-151.0,0.00024799,7]
[320034889,1711098647643,-151.0,0.00024799,7]
[320034890,1711098647664,-874.25584,0.00024799,7]
[320034891,1711098647684,-202.276447,0.00024799,7]
[320034892,1711098647709,-874.25584,0.00024799,7]
[320034893,1711098647738,-202.276447,0.00024799,7]
[320034894,1711098647764,-340.025869,0.00024799,7]
[320034895,1711098647774,-151.0,0.00024799,7]
[320034896,1711098647783,-340.025869,0.00024799,7]
[320034897,1711098647792,-151.0,0.00024799,7]
[320034898,1711098647801,-259.979358,0.00024799,7]
[320034899,1711098647811,-259.979358,0.00024799,7]
[320034900,1711098647820,-355.436378,0.00024799,7]
[320034901,1711098647830,-151.0,0.00024799,7]
[320034902,1711098647839,-355.436378,0.00024799,7]
[320034903,1711098647849,-278.767509,0.00024799,7]
[320034904,1711098647860,-376.39,0.000248,2]
[320034905,1711098647869,-1000.0,0.00024819,7]
[320034906,1711098647878,-1446.220376,0.00024883,2]
[320034907,1711098647888,-21278.5653584,0.00024883,2]
[320034908,1711098647897,-3052.20001483,0.000249,2]
[320034909,1711098647907,-13906.42432303,0.000249,5]
[320034910,1711098649254,-474432.50325853,0.000249,5]
[320034911,1711098649263,-151.0,0.000249,7]
[320034912,1711098649273,-226.815477,0.000249,3]
[320034913,1711098649282,-300.0,0.000249,7]
[320034914,1711098649292,-300.0,0.000249,7]
[320034915,1711098649302,-151.0,0.000249,7]
[320034916,1711098649312,-151.0,0.000249,7]
[320034917,1711098649322,-154.76286,0.000249,7]
[320034918,1711098649332,-151.0,0.000249,7]
[320034919,1711098649342,-278.759695,0.000249,7]
[320034920,1711098649352,-151.0,0.000249,7]
[320034921,1711098649364,-151.0,0.000249,7]
[320034922,1711098649376,-151.0,0.000249,7]
[320034923,1711098649386,-151.0,0.000249,7]
[320034924,1711098649397,-151.0,0.000249,7]
[320034925,1711098649408,-151.0,0.000249,7]
[320034926,1711098649419,-208.431903,0.000249,7]
[320034927,1711098649430,-217.221067,0.000249,7]
[320034928,1711098649442,-151.0,0.000249,7]
[320034929,1711098649453,-395.546648,0.000249,7]
[320034930,1711098649462,-297.102007,0.000249,7]
[320034931,1711098649474,-297.102007,0.000249,7]
[320034932,1711098649484,-395.546648,0.000249,7]
[320034933,1711098649495,-561.841556,0.000249,7]
[320034934,1711098649506,-561.841556,0.000249,7]
[320034935,1711098649517,-151.0,0.000249,7]
[320034936,1711098649527,-151.0,0.000249,7]
[320034937,1711098649538,-151.27275149,0.000249,2]
[320034938,1711098649549,-151.27275109,0.000249,2]
[320034939,1711098649559,-151.27275109,0.000249,2]
[320034940,1711098649568,-151.27275109,0.000249,2]
[320034941,1711098649577,-151.27275109,0.000249,2]
[320034942,1711098649588,-151.0,0.000249,7]
[320034943,1711098649598,-151.27275109,0.000249,2]
[320034944,1711098649610,-151.27275109,0.000249,2]
[320034945,1711098649621,-151.27275109,0.000249,2]
[320034946,1711098649631,-151.27275109,0.000249,2]
[320034947,1711098649641,-336.46883,0.000249,7]
[320034948,1711098649655,-336.46883,0.000249,7]
[320034949,1711098649665,-151.0,0.000249,7]
[320034950,1711098649676,-151.0,0.000249,7]
[320034951,1711098649686,-429.967919,0.000249,7]
[320034952,1711098649698,-429.967919,0.000249,7]
[320034953,1711098649707,-151.0,0.000249,7]
[320034954,1711098649718,-168.299921,0.000249,7]
[320034955,1711098649730,-154.684673,0.000249,7]
[320034956,1711098649740,-151.0,0.000249,7]
[320034957,1711098649750,-197.977074,0.000249,7]
[320034958,1711098649760,-151.0,0.000249,7]
[320034959,1711098649769,-175.334625,0.000249,7]
[320034960,1711098649779,-155.513142,0.000249,7]
[320034961,1711098649789,-183.783014,0.000249,7]
[320034962,1711098649799,-151.0,0.000249,7]
[320034963,1711098649810,-151.0,0.000249,7]
[320034964,1711098649820,-151.0,0.000249,7]
[320034965,1711098649830,-470.24277,0.000249,7]
[320034966,1711098649840,-488.880556,0.000249,7]
[320034967,1711098649850,-488.880556,0.000249,7]
[320034968,1711098649860,-470.24277,0.000249,7]
[320034969,1711098649871,-170.665965,0.000249,7]
[320034970,1711098649881,-170.665965,0.000249,7]
[320034971,1711098649892,-151.0,0.000249,7]
[320034972,1711098649902,-1609.014686,0.000249,7]
[320034973,1711098649912,-1609.014686,0.000249,7]
[320034974,1711098649921,-312.971937,0.000249,7]
[320034975,1711098649931,-7251.65946253,0.000249,2]
[320034976,1711098649942,-312.971937,0.000249,7]
[320034977,1711098649952,-151.0,0.000249,7]
[320034978,1711098649962,-151.0,0.000249,7]
[320034979,1711098649972,-874.25584,0.000249,7]
[320034980,1711098649982,-202.276447,0.000249,7]
[320034981,1711098649992,-874.25584,0.000249,7]
[320034982,1711098650002,-202.276447,0.000249,7]
[320034983,1711098650012,-340.025869,0.000249,7]
[320034984,1711098650021,-151.0,0.000249,7]
[320034985,1711098650031,-340.025869,0.000249,7]
[320034986,1711098650042,-151.0,0.000249,7]
[320034987,1711098650052,-259.979358,0.000249,7]
[320034988,1711098650062,-259.979358,0.000249,7]
[320034989,1711098650072,-355.436378,0.000249,7]
[320034990,1711098650083,-151.0,0.000249,7]
[320034991,1711098650093,-355.436378,0.000249,7]
[320034992,1711098650102,-151.0,0.000249,7]
[320034993,1711098650113,-10000.0,0.000249,7]
[320034994,1711098650124,-10000.0,0.000249,7]
[320034995,1711098650133,-781.793816,0.000249,7]
[320034996,1711098650144,-10000.0,0.000249,7]
[320034997,1711098650153,-781.793816,0.000249,7]
[320034998,1711098650163,-323.318234,0.000249,7]
[320034999,1711098650174,-323.318234,0.000249,7]
[320035000,1711098650184,-175.172714,0.000249,7]
[320035001,1711098650195,-247.687571,0.000249,7]
[320035002,1711098650205,-175.172714,0.000249,7]
[320035003,1711098650214,-240.097416,0.000249,7]
[320035004,1711098650225,-240.097416,0.000249,7]
[320035005,1711098650236,-151.0,0.000249,7]
[320035006,1711098650247,-1560.101566,0.000249,7]
[320035007,1711098650257,-1560.101566,0.000249,7]
[320035008,1711098650267,-151.0,0.000249,7]
[320035009,1711098650278,-289.873019,0.000249,7]
[320035010,1711098650288,-151.0,0.000249,7]
[320035011,1711098650298,-289.873019,0.000249,7]
[320035012,1711098650308,-1118.666728,0.000249,7]
[320035013,1711098650319,-1118.666728,0.000249,7]
[320035014,1711098650329,-151.0,0.000249,7]
[320035015,1711098650339,-431.806795,0.000249,7]
[320035016,1711098650350,-431.806795,0.000249,7]
[320035017,1711098650362,-151.0,0.000249,7]
[320035018,1711098650373,-151.0,0.000249,7]
[320035019,1711098650385,-3606.518712,0.000249,7]
[320035020,1711098650394,-3606.518712,0.000249,7]
[320035021,1711098650404,-150.0,0.00024936,2]
[320035022,1711098650415,-150.0,0.00024951,2]
[320035023,1711098650424,-402.29338928,0.0002497,2]
[320035024,1711098650434,-799.02271517,0.0002497,2]
[320035025,1711098650443,-400.0,0.0002497,2]
[320035026,1711098650453,-400.0,0.0002497,2]
[320035027,1711098650462,-419.64,0.00024974,2]
[320035028,1711098650472,-155.0,0.00025,2]
[320035029,1711098650684,-380.11595976,0.00025,2]
[320035030,1711098650696,-1000.0,0.00025,2]
[320035031,1711098650707,-917.32165854,0.00025,10]
[320035032,1711098650719,-1968.96339923,0.00025,2]
[320035033,1711098650732,-150.0,0.00025,2]
[320035034,1711098650742,-155.1652852,0.00025,2]
[320035035,1711098650752,-250000.0,0.00025,2]
[320035036,1711098650764,-1319.47162224,0.00025,30]
[320035037,1711098650775,-150.0,0.00025,2]
[320035038,1711098650786,-617.84779185,0.00025,3]
[320035039,1711098650797,-151.0,0.00025,7]
[320035040,1711098650808,-300.0,0.00025,7]
[320035041,1711098650819,-300.0,0.00025,7]
[320035042,1711098650830,-151.0,0.00025,7]
[320035043,1711098650841,-151.0,0.00025,7]
[320035044,1711098650852,-151.0,0.00025,7]
[320035045,1711098650864,-151.0,0.00025,7]
[320035046,1711098650874,-280.78581,0.00025,7]
[320035047,1711098650885,-151.0,0.00025,7]
[320035048,1711098650896,-151.0,0.00025,7]
[320035049,1711098650907,-650.0,0.00025,3]
[320035050,1711098650916,-151.0,0.00025,7]
[320035051,1711098650926,-151.0,0.00025,7]
[320035052,1711098650937,-151.0,0.00025,7]
[320035053,1711098650946,-297.102007,0.00025,7]
[320035054,1711098650955,-395.546648,0.00025,7]
[320035055,1711098650965,-297.102007,0.00025,7]
[320035056,1711098650975,-395.546648,0.00025,7]
[320035057,1711098650985,-561.841556,0.00025,7]
[320035058,1711098650994,-561.841556,0.00025,7]
[320035059,1711098651005,-151.0,0.00025,7]
[320035060,1711098651015,-151.0,0.00025,7]
[320035061,1711098651026,-155.071,0.00025,2]
[320035062,1711098651036,-150.0,0.00025,2]
[320035063,1711098651047,-151.0,0.00025,7]
[320035064,1711098651056,-150.161575,0.00025,2]
[320035065,1711098651067,-336.46883,0.00025,7]
[320035066,1711098651077,-336.46883,0.00025,7]
[320035067,1711098651088,-151.0,0.00025,7]
[320035068,1711098651097,-151.0,0.00025,7]
[320035069,1711098651108,-429.967919,0.00025,7]
[320035070,1711098651118,-429.967919,0.00025,7]
[320035071,1711098651129,-151.0,0.00025,7]
[320035072,1711098651138,-458.0,0.00025,13]
[320035073,1711098651149,-151.0,0.00025,7]
[320035074,1711098651159,-151.0,0.00025,7]
[320035075,1711098651169,-151.0,0.00025,7]
[320035076,1711098651179,-600.0,0.00025,2]
[320035077,1711098651189,-151.0,0.00025,7]
[320035078,1711098651200,-151.0,0.00025,7]
[320035079,1711098651210,-200.0,0.00025,2]
[320035080,1711098651221,-470.24277,0.00025,7]
[320035081,1711098651232,-488.880556,0.00025,7]
[320035082,1711098651242,-488.880556,0.00025,7]
[320035083,1711098651253,-470.24277,0.00025,7]
[320035084,1711098651262,-170.665965,0.00025,7]
[320035085,1711098651272,-170.665965,0.00025,7]
[320035086,1711098651282,-151.0,0.00025,7]
[320035087,1711098651292,-1609.014686,0.00025,7]
[320035088,1711098651303,-1609.014686,0.00025,7]
[320035089,1711098651313,-312.971937,0.00025,7]
[320035090,1711098651323,-312.971937,0.00025,7]
[320035091,1711098651334,-151.0,0.00025,7]
[320035092,1711098651344,-151.0,0.00025,7]
[320035093,1711098651354,-874.25584,0.00025,7]
[320035094,1711098651366,-202.276447,0.00025,7]
[320035095,1711098651377,-874.25584,0.00025,7]
[320035096,1711098651388,-202.276447,0.00025,7]
[320035097,1711098651397,-340.025869,0.00025,7]
[320035098,1711098651407,-1569.22667981,0.00025,30]
[320035099,1711098651417,-340.025869,0.00025,7]
[320035100,1711098651426,-151.0,0.00025,7]
[320035101,1711098651436,-259.979358,0.00025,7]
[320035102,1711098651447,-259.979358,0.00025,7]
[320035103,1711098651457,-355.436378,0.00025,7]
[320035104,1711098651468,-151.0,0.00025,7]
[320035105,1711098651479,-355.436378,0.00025,7]
[320035106,1711098651490,-265.609048,0.00025,7]
[320035107,1711098651501,-1266.42043429,0.00025,7]
[320035108,1711098652412,-235.0504256,0.00020999,2]
[320035109,1711098652422,-3000.0,0.00021,2]
[320035110,1711098652433,-188.455152,0.00024384,7]
[320035111,1711098652442,-188.455152,0.00024384,7]
[320035112,1711098652453,-8733.57956571,0.00025,7]
[320035113,1711098652464,-10000.0,0.00025,7]
[320035114,1711098652475,-781.793816,0.00025,7]
[320035115,1711098652484,-10000.0,0.00025,7]
[320035116,1711098652494,-781.793816,0.00025,7]
[320035117,1711098652505,-323.318234,0.00025,7]
[320035118,1711098652516,-323.318234,0.00025,7]
[320035119,1711098652526,-175.172714,0.00025,7]
[320035120,1711098652537,-175.172714,0.00025,7]
[320035121,1711098652547,-240.097416,0.00025,7]
[320035122,1711098652558,-240.097416,0.00025,7]
[320035123,1711098652568,-151.0,0.00025,7]
[320035124,1711098652577,-1560.101566,0.00025,7]
[320035125,1711098652587,-1560.101566,0.00025,7]
[320035126,1711098652597,-151.0,0.00025,7]
[320035127,1711098652607,-289.873019,0.00025,7]
[320035128,1711098652619,-305.56,0.00025,2]
[320035129,1711098652628,-151.0,0.00025,7]
[320035130,1711098652639,-289.873019,0.00025,7]
[320035131,1711098652653,-1118.666728,0.00025,7]
[320035132,1711098652664,-1118.666728,0.00025,7]
[320035133,1711098652674,-151.0,0.00025,7]
[320035134,1711098652686,-431.806795,0.00025,7]
[320035135,1711098652696,-431.806795,0.00025,7]
[320035136,1711098652706,-151.0,0.00025,7]
[320035137,1711098652716,-165.252325,0.00025,7]
[320035138,1711098652727,-3606.518712,0.00025,7]
[320035139,1711098652739,-3606.518712,0.00025,7]
[320035140,1711098652749,-150.0,0.00025001,2]
[320035141,1711098652760,-300.0,0.00025005,2]
[320035142,1711098652770,-2199.7066512,0.00025005,2]
[320035143,1711098652780,-155.0,0.00025005,2]
[320035144,1711098652790,-151.27275109,0.0002501,2]
[320035145,1711098652800,-150.0,0.00025018,2]
[320035146,1711098652810,-150.0,0.00025019,2]
[320035147,1711098652821,-150.0,0.00025046,2]
[320035148,1711098652832,-876.03122897,0.00025102,2]
[320035149,1711098652842,-1000.0,0.00025109,7]
[320035150,1711098652852,-150.0,0.00025148,2]
[320035151,1711098652864,-200.0,0.00025154,2]
[320035152,1711098652875,-150.0,0.0002516,2]
[320035153,1711098652886,-150.0,0.00025218,2]
[320035154,1711098652896,-158.58701047,0.00025222,2]
[320035155,1711098652906,-150.0,0.00025243,2]
[320035156,1711098652917,-150.0,0.00025314,2]
[320035157,1711098652928,-151.0,0.00025315,2]
[320035158,1711098652938,-434.0,0.00025315,2]
[320035159,1711098652948,-152.0,0.00025315,2]
[320035160,1711098652957,-232.83814637,0.00025328,2]
[320035161,1711098652967,-1182.05904255,0.00025345,2]
[320035162,1711098652977,-150.0,0.0002536,2]
[320035163,1711098652987,-1000.0,0.00025399,7]
[320035164,1711098652998,-150.0,0.00025435,2]
[320035165,1711098653008,-151.27275109,0.00025467,2]
[320035166,1711098653017,-458.0,0.000255,13]
[320035167,1711098653027,-616.34708372,0.00025575,10]
[320035168,1711098653037,-583.16461862,0.00025655,2]
[320035169,1711098653047,-232.83814637,0.00025682,2]
[320035170,1711098653057,-1000.0,0.00025689,7]
[320035171,1711098653066,-1012.2,0.000257,2]
[320035172,1711098653077,-14764.88246801,0.00025813,2]
[320035173,1711098653086,-6224.16297924,0.00025872,2]
[320035174,1711098653095,-151.27275109,0.00025924,2]
[320035175,1711098653105,-1000.0,0.00025979,7]
[320035176,1711098653116,-500.0,0.0002598,2]
[320035177,1711098653125,-310.0,0.0002598,2]
[320035178,1711098653135,-303.0,0.0002598,2]
[320035179,1711098653144,-300.0,0.0002598,2]
[320035180,1711098653153,-506.0,0.0002598,2]
[320035181,1711098653162,-151.38,0.00025986,2]
[320035182,1711098653172,-150.0,0.00025986,2]
[320035183,1711098653182,-150.0,0.00025986,2]
[320035184,1711098653193,-150.0,0.00025986,2]
[320035185,1711098653202,-150.0,0.00025986,2]
[320035186,1711098653212,-150.0,0.00025986,2]
[320035187,1711098653221,-212.89,0.00025986,2]
[320035188,1711098653231,-150.0,0.00025986,2]
[320035189,1711098653239,-150.0,0.00025986,2]
[320035190,1711098653248,-150.0,0.00025986,2]
[320035191,1711098653258,-150.0,0.00025986,2]
[320035192,1711098653267,-1200.0,0.00026,27]
[320035193,1711098653276,-150.0,0.00026,2]
[320035194,1711098653285,-150.0,0.00026,2]
[320035195,1711098653448,-12000.0,0.00026,2]
[320035196,1711098653457,-239.2,0.00026,2]
[320035197,1711098653467,-458.0,0.00026,14]
[320035198,1711098653477,-3000.0,0.00026,2]
[320035199,1711098653486,-469.84717751,0.0002601,2]
[320035200,1711098653496,-151.0,0.00026027,2]
[320035201,1711098653505,-434.0,0.00026027,2]
[320035202,1711098653514,-152.0,0.00026027,2]
[320035203,1711098653523,-2060.60857391,0.00026043,3]
[320035204,1711098653532,-300.0,0.00026062,7]
[320035205,1711098653542,-300.0,0.00026062,7]
[320035206,1711098653551,-300.0,0.00026062,7]
[320035207,1711098653560,-300.0,0.00026062,7]
[320035208,1711098653569,-151.0,0.00026062,7]
[320035209,1711098653579,-151.0,0.00026062,7]
[320035210,1711098653589,-151.0,0.00026062,7]
[320035211,1711098653598,-151.0,0.00026062,7]
[320035212,1711098653607,-151.0,0.00026062,7]
[320035213,1711098653621,-151.0,0.00026062,7]
[320035214,1711098653630,-151.0,0.00026062,7]
[320035215,1711098653642,-151.0,0.00026062,7]
[320035216,1711098653651,-151.0,0.00026062,7]
[320035217,1711098653659,-151.0,0.00026062,7]
[320035218,1711098653668,-259.348779,0.00026062,7]
[320035219,1711098653678,-151.0,0.00026062,7]
[320035220,1711098653688,-151.0,0.00026062,7]
[320035221,1711098653699,-300.0,0.00026087,7]
[320035222,1711098653709,-300.0,0.00026087,7]
[320035223,1711098653720,-151.0,0.00026087,7]
[320035224,1711098653730,-151.0,0.00026087,7]
[320035225,1711098653740,-151.0,0.00026087,7]
[320035226,1711098653750,-285.549847,0.00026087,7]
[320035227,1711098653760,-151.0,0.00026087,7]
[320035228,1711098653771,-151.0,0.00026087,7]
[320035229,1711098653782,-151.0,0.00026092,7]
[320035230,1711098653793,-151.0,0.00026092,7]
[320035231,1711098653803,-24696.2240552,0.00026092,2]
[320035232,1711098653813,-1709.1695353,0.00026099,2]
[320035233,1711098653823,-193.3092049,0.00026102,30]
[320035234,1711098653833,-79321.49635042,0.00026102,2]
[320035235,1711098655489,-399.63097947,0.00020998,2]
[320035236,1711098655502,-328.77942108,0.00020998,2]
[320035237,1711098655515,-657.62239175,0.00020998,2]
[320035238,1711098655529,-19063.86513791,0.00020998,2]
[320035239,1711098655578,-111694.97079691,0.00020998,2]
[320035240,1711098655591,-300.93032452,0.00020998,2]
[320035241,1711098655608,-150039.83982221,0.00020998,2]
[320035242,1711098655620,-162.7969969,0.00020999,2]
[320035243,1711098655630,-4102.39026004,0.00020999,2]
[320035244,1711098655640,-802.95691961,0.00021184,2]
[320035245,1711098655654,-323.64473252,0.00021799,2]
[320035246,1711098655664,-360.36234174,0.00021799,2]
[320035247,1711098655674,-265.68120969,0.00021799,2]
[320035248,1711098655685,-669.07,0.00021878,2]
[320035249,1711098655695,-188.455152,0.00024384,7]